bitfinex/quotes_SOLUSD_20260314
["timestamp","ask_amount","ask_price","bid_price","bid_amount"]
[1773489480505,0.4587306,86.995,86.973,0.4767754]
[1773489481703,0.4587306,86.993,86.966,0.4767754]
[1773489482000,0.4587306,86.993,86.962,0.4767754]
[1773489485207,11.49530991,86.992,86.962,0.4767754]
[1773489485385,0.4587306,86.991,86.962,0.4767754]
[1773489488615,11.4955742,86.99,86.962,0.4767754]
[1773489488819,0.4587306,86.989,86.962,0.4767754]
[1773489491814,28.73662194,86.998,86.962,0.4767754]
[1773489491815,11.9545691,86.988,86.962,0.4767754]
[1773489492518,0.4587306,86.987,86.962,0.4767754]
[1773489493402,11.49610282,86.986,86.962,0.4767754]
[1773489493794,11.95483342,86.986,86.962,0.4767754]
[1773489494889,0.4587306,86.985,86.962,0.4767754]
[1773489496898,11.49610282,86.986,86.964,0.4767754]
[1773489498100,11.49610282,86.986,86.966,0.4767754]
[1773489498408,11.95483342,86.986,86.966,0.4767754]
[1773489513014,0.47299097,86.99,86.966,0.4767754]
[1773489515929,0.47299097,86.988,86.966,0.4767754]
[1773489522529,0.47299097,86.992,86.968,0.47506549]
[1773489524038,11.49544205,86.991,86.968,0.47506549]
[1773489524235,0.47299097,86.99,86.968,0.47506549]
[1773489527044,11.49570635,86.989,86.968,0.47506549]
[1773489527344,11.96869732,86.989,86.968,0.47506549]
[1773489528733,0.46821229,86.988,86.968,0.47506549]
[1773489530745,0.46821229,86.988,86.969,11.49834998]
[1773489530932,0.46821229,86.988,86.97,0.45961657]
[1773489531328,11.49597066,86.987,86.97,0.45961657]
[1773489531522,0.46821229,86.988,86.97,0.45961657]
[1773489533333,0.47394578,86.992,86.97,0.45961657]
[1773489533834,11.49438499,86.999,86.971,11.49808556]
[1773489534025,11.49438499,86.999,86.972,0.47646484]
[1773489536529,0.47394578,87.001,86.972,0.47646484]
[1773489537460,11.49425287,87.0,86.972,0.47646484]
[1773489537642,11.96819865,87.0,86.972,0.47646484]
[1773489538053,0.47394578,86.999,86.972,0.47646484]
[1773489539846,11.49451711,86.998,86.972,0.47646484]
[1773489540050,0.47394578,86.997,86.974,0.47646484]
[1773489541447,0.47394578,86.997,86.968,0.47646484]
[1773489541633,11.49451711,86.998,86.961,61.6]
[1773489541634,0.47394578,86.989,86.961,61.6]
[1773489542029,0.47394578,86.987,86.961,62.07646484]
[1773489542226,0.47394578,86.979,86.953,0.47646484]
[1773489543446,0.47394578,86.977,86.953,0.47646484]
[1773489544651,0.47394578,86.977,86.955,0.47646484]
[1773489549455,11.97137035,86.976,86.955,0.47646484]
[1773489550049,11.97087611,86.98,86.957,0.47646484]
[1773489550247,0.47394578,86.979,86.957,0.47646484]
[1773489550451,11.49693033,86.98,86.957,0.47646484]
[1773489551861,11.49693033,86.98,86.959,0.47646484]
[1773489552658,0.47394578,86.999,86.961,0.47646484]
[1773489555360,11.49451711,86.998,86.962,11.49927554]
[1773489555563,0.47394578,86.997,86.963,0.47646484]
[1773489557561,57.45340605,87.028,86.958,28.74951125]
[1773489557562,0.47394578,86.989,86.958,0.47646484]
[1773489557765,0.47394578,86.979,86.958,0.47646484]
[1773489561161,3.74898941,86.98,86.959,11.49967225]
[1773489561363,11.49636714,86.984,86.96,0.46344035]
[1773489561665,0.49915875,86.983,86.96,0.46344035]
[1773489563070,0.49915875,86.981,86.96,0.46344035]
[1773489572765,0.49915875,86.991,86.962,0.46344035]
[1773489575863,0.49915875,86.989,86.962,0.46344035]
[1773489578475,0.49915875,86.987,86.953,0.46344035]
[1773489578781,0.49915875,86.979,86.953,0.46344035]
[1773489579161,0.49915875,86.979,86.953,11.96390611]
[1773489579473,0.49915875,86.979,86.953,0.46344035]
[1773489580471,11.49438499,86.999,86.961,0.48722389]
[1773489580782,40.23034747,86.999,86.961,0.48722389]
[1773489581575,3.7503144,86.99,86.961,0.48722389]
[1773489582465,11.49570635,86.989,86.961,0.48722389]
[1773489582673,0.02555222,86.988,86.961,0.48722389]
[1773489583376,0.02555222,86.988,86.962,11.49927554]
[1773489583571,0.02555222,86.988,86.963,0.48722389]
[1773489585674,0.02555222,87.004,86.965,0.48722389]
[1773489585980,0.02555222,87.004,86.971,0.48722389]
[1773489587576,0.02555222,87.004,86.973,0.48722389]
[1773489593378,0.02555222,87.004,86.975,0.49499314]
[1773489597886,11.49359232,87.005,86.975,0.49499314]
[1773489597887,11.01914454,87.005,86.975,0.5]
[1773489599975,39.75312534,87.005,86.975,0.5]
[1773489600361,0.48097261,86.979,86.865,46.04843574]
[1773489600578,3.7503144,87.0,86.901,11.50734744]
[1773489600579,0.48097261,86.939,86.901,11.50734744]
[1773489600776,6.84,86.952,86.921,0.49499314]
[1773489600960,11.0903144,86.96,86.921,0.49499314]
[1773489601156,11.0903144,86.96,86.931,0.49499314]
[1773489601157,7.34,86.96,86.931,0.49499314]
[1773489601383,7.34,86.96,86.941,0.49499314]
[1773489601767,3.7503144,86.97,86.941,0.49499314]
[1773489601958,11.49834998,86.969,86.941,0.49499314]
[1773489602692,0.2488649,86.968,86.943,0.49499314]
[1773489603575,3.7503144,86.96,86.931,0.49499314]
[1773489603776,3.9991793,86.94,86.912,0.49499314]
[1773489604086,3.7503144,86.92,86.9,0.2]
[1773489604265,0.48097261,86.925,86.901,11.50734744]
[1773489604975,3.7503144,86.92,86.9,0.2]
[1773489605168,0.48097261,86.926,86.9,0.2]
[1773489605989,0.48097261,86.926,86.901,11.50734744]
[1773489606174,0.48097261,86.926,86.902,0.49499314]
[1773489607687,0.48097261,86.926,86.904,0.49499314]
[1773489608593,0.48097261,86.919,86.9,0.2]
[1773489608768,0.48097261,86.919,86.901,0.49499314]
[1773489608974,11.98514287,86.925,86.901,0.49499314]
[1773489609383,0.48097261,86.924,86.901,0.49499314]
[1773489610775,0.48097261,86.949,86.911,0.49499314]
[1773489610976,0.48097261,86.949,86.921,0.49499314]
[1773489611788,0.48097261,86.956,86.921,0.49499314]
[1773489611983,0.48097261,86.962,86.931,0.49499314]
[1773489612565,0.48097261,86.959,86.931,0.49499314]
[1773489612976,0.48097261,86.957,86.931,0.49499314]
[1773489615890,0.48097261,86.955,86.933,0.49499314]
[1773489616090,3.7503144,86.95,86.933,0.49499314]
[1773489616391,4.23128701,86.95,86.933,0.49499314]
[1773489616690,0.48097261,86.969,86.931,0.49499314]
[1773489618009,0.48097261,86.967,86.933,0.49499314]
[1773489620904,28.74421706,86.975,86.935,0.49499314]
[1773489620905,0.48097261,86.959,86.935,0.49499314]
[1773489621981,0.48097261,86.959,86.929,0.4870893]
[1773489622178,0.45776238,86.949,86.922,0.4870893]
[1773489622377,0.45776238,86.949,86.923,0.4870893]
[1773489623501,11.95888949,86.948,86.923,0.4870893]
[1773489623681,11.50112711,86.948,86.923,0.4870893]
[1773489623883,11.95888949,86.948,86.923,0.4870893]
[1773489624313,0.45776238,86.947,86.923,0.4870893]
[1773489625086,11.50139166,86.946,86.923,0.4870893]
[1773489626134,0.45776238,86.947,86.925,0.4870893]
[1773489626488,11.49954001,86.96,86.931,0.4870893]
[1773489626705,11.95730239,86.96,86.941,0.4870893]
[1773489629906,0.45776238,86.965,86.941,0.4870893]
[1773489631611,11.49834998,86.969,86.943,0.4870893]
[1773489631995,11.95637679,86.967,86.943,0.4870893]
[1773489632308,0.45776238,86.966,86.943,0.4870893]
[1773489635916,0.45776238,86.964,86.943,0.4870893]
[1773489636307,0.45776238,86.959,86.925,0.4870893]
[1773489637506,0.45776238,86.957,86.929,0.4870893]
[1773489638314,11.4984822,86.968,86.931,0.4870893]
[1773489638502,0.45776238,86.967,86.931,0.4870893]
[1773489641717,0.45776238,86.965,86.933,0.4870893]
[1773489644606,0.45776238,86.965,86.934,11.50297927]
[1773489644805,0.45776238,86.965,86.935,0.4870893]
[1773489647935,0.45776238,86.965,86.937,0.4870893]
[1773489648734,0.461289,86.963,86.937,0.4870893]
[1773489651023,0.461289,86.963,86.939,0.48228029]
[1773489653328,0.461289,86.963,86.94,11.50218541]
[1773489653536,0.461289,86.963,86.941,0.48492616]
[1773489654645,7.65933126,87.0,86.941,0.48492616]
[1773489654936,0.4995903,86.998,86.968,0.48492616]
[1773489655144,0.4995903,86.989,86.956,0.48492616]
[1773489655323,0.4995903,86.979,86.95,0.48492616]
[1773489656717,47.57034747,86.999,86.94,0.48492616]
[1773489656718,0.4995903,86.969,86.94,0.48492616]
[1773489656915,0.4995903,86.959,86.931,0.48492616]
[1773489658037,0.4995903,86.959,86.933,0.48492616]
[1773489659330,0.4995903,86.959,86.935,0.48492616]
[1773489661745,0.4995903,86.959,86.937,0.48492616]
[1773489661944,3.75109875,86.95,86.914,0.48492616]
[1773489662241,0.4995903,86.949,86.914,0.48492616]
[1773489663330,0.4995903,86.947,86.915,0.48492616]
[1773489666149,0.4995903,86.945,86.917,0.48492616]
[1773489668851,0.4995903,86.945,86.909,28.76569673]
[1773489668852,0.4995903,86.945,86.92,3.75109875]
[1773489669028,0.4995903,86.952,86.921,0.48492616]
[1773489671952,0.4995903,86.952,86.923,0.48492616]
[1773489672849,0.4995903,86.95,86.923,0.48492616]
[1773489674746,0.4995903,86.95,86.924,11.5043026]
[1773489674941,0.4995903,86.95,86.925,0.48492616]
[1773489676448,0.4995903,86.948,86.926,11.50403791]
[1773489678052,0.4995903,86.948,86.926,0.48492616]
[1773489681047,0.4995903,86.948,86.927,11.50390557]
[1773489681244,0.4995903,86.948,86.926,0.48492616]
[1773489681445,0.45465924,86.954,86.931,0.48279411]
[1773489683660,3.75109875,86.97,86.933,0.48279411]
[1773489683857,0.72100001,86.983,86.951,0.48279411]
[1773489683858,0.45465924,86.979,86.951,0.48279411]
[1773489686260,0.45465924,86.979,86.952,11.50059803]
[1773489686466,0.45465924,86.979,86.953,0.48279411]
[1773489687862,0.45465924,86.977,86.953,0.48279411]
[1773489689761,11.49742457,86.976,86.953,0.48279411]
[1773489690065,0.45465924,86.975,86.953,0.48279411]
[1773489698976,0.45465924,86.975,86.955,0.48279411]
[1773489701168,0.45465924,86.975,86.957,0.48279411]
[1773489705893,0.45465924,86.975,86.959,0.48279411]
[1773489707493,0.45465924,86.984,86.96,11.49954001]
[1773489707789,0.45465924,86.982,86.961,0.48279411]
[1773489709791,0.471488,86.979,86.94,32.50541432]
[1773489711598,0.4894839,86.977,86.943,0.37334785]
[1773489714095,0.4894839,86.975,86.945,0.37334785]
[1773489717197,0.4894839,86.973,86.947,0.37334785]
[1773489718707,0.4894839,86.973,86.951,0.37334785]
[1773489719200,0.4894839,86.973,86.952,11.50059803]
[1773489719784,0.4894839,86.971,86.951,11.87399165]
[1773489720102,0.4894839,86.971,86.952,0.37334785]
[1773489721705,0.4894839,86.976,86.954,0.37334785]
[1773489721906,7.34,86.983,86.961,0.37334785]
[1773489722112,0.4894839,86.996,86.971,0.37334785]
[1773489722295,0.4894839,86.989,86.953,11.50046576]
[1773489722495,0.4894839,86.979,86.953,11.50046576]
[1773489722996,0.4894839,86.979,86.953,11.87381361]
[1773489723403,0.4894839,86.979,86.954,0.37334785]
[1773489723906,11.49711408,86.979,86.954,0.37334785]
[1773489724089,0.4894839,86.978,86.955,11.8735491]
[1773489724288,0.4894839,86.978,86.955,11.50020125]
[1773489724500,0.4894839,86.978,86.951,11.87405687]
[1773489725103,0.4894839,86.978,86.952,0.37334785]
[1773489726013,0.4894839,86.978,86.95,3.75012629]
[1773489726014,0.4894839,86.978,86.954,0.37334785]
[1773489727105,0.4894839,86.978,86.955,11.50020125]
[1773489727308,0.4894839,86.978,86.956,0.37334785]
[1773489730494,0.4894839,86.978,86.958,0.37334785]
[1773489734994,0.4894839,86.978,86.95,4.25012629]
[1773489734995,0.4894839,86.978,86.96,0.37334785]
[1773489735194,0.4894839,86.978,86.959,11.49967225]
[1773489736100,0.4894839,87.009,86.971,0.37334785]
[1773489736307,0.4894839,86.999,86.971,0.37334785]
[1773489737114,11.49451711,86.998,86.971,0.37334785]
[1773489737314,0.4894839,86.979,86.952,11.87394588]
[1773489737899,0.4894839,86.979,86.953,0.37334785]
[1773489740315,0.4894839,86.979,86.954,11.5003335]
[1773489742517,0.4894839,86.979,86.955,0.37334785]
[1773489743116,0.48321962,86.992,86.96,3.75012629]
[1773489743316,0.48321962,86.992,86.961,0.37334785]
[1773489744110,3.75012629,86.99,86.961,0.37334785]
[1773489744306,11.4958385,86.988,86.955,0.37334785]
[1773489744506,0.48321962,86.987,86.955,0.37334785]
[1773489747127,0.48321962,86.987,86.957,0.37334785]
[1773489747923,0.48321962,86.969,86.931,0.49128039]
[1773489748226,0.48321962,86.96,86.931,0.49128039]
[1773489748702,0.48321962,86.968,86.931,0.49128039]
[1773489749102,0.48321962,86.966,86.933,0.49128039]
[1773489753225,0.48321962,86.966,86.935,0.49128039]
[1773489753427,0.48321962,86.964,86.935,0.49128039]
[1773489756027,0.48321962,86.964,86.937,0.49128039]
[1773489757935,0.48321962,86.962,86.937,0.49128039]
[1773489758117,0.48321962,86.959,86.939,0.49128039]
[1773489760627,0.48321962,86.958,86.921,0.49128039]
[1773489762833,11.49993675,86.957,86.922,11.50456731]
[1773489763031,0.48321962,86.949,86.923,0.49128039]
[1773489764640,0.48321962,86.979,86.941,0.49128039]
[1773489764936,0.48321962,86.967,86.941,11.99333193]
[1773489765235,0.48321962,86.967,86.941,0.49128039]
[1773489765436,0.48321962,86.967,86.93,0.49128039]
[1773489767041,11.49874663,86.966,86.931,11.50337624]
[1773489767244,0.48321962,86.965,86.932,0.49128039]
[1773489769835,0.48321962,86.965,86.934,0.47233765]
[1773489770754,10.81621697,86.964,86.936,0.47233765]
[1773489770936,28.74285338,86.979,86.942,0.47233765]
[1773489770937,0.4816999,86.979,86.942,0.47233765]
[1773489772341,0.4816999,86.979,86.944,0.46585549]
[1773489772939,3.75179232,86.98,86.944,0.46585549]
[1773489773147,3.75179232,86.98,86.951,0.46585549]
[1773489773351,0.5,87.0,86.946,2.95506722]
[1773489773552,0.5,87.029,86.99,3.75179232]
[1773489774027,0.5,87.028,86.99,3.75179232]
[1773489774745,3.85179232,87.03,86.991,11.49544205]
[1773489774746,0.5,87.026,86.991,11.49544205]
[1773489776763,7.34,87.028,87.0,3.75179232]
[1773489776934,7.34,87.057,87.021,0.46585549]
[1773489777138,3.85179232,87.05,87.021,0.46585549]
[1773489777742,11.48795232,87.048,87.021,0.46585549]
[1773489778054,3.85179232,87.05,87.021,0.46585549]
[1773489778055,11.48824373,87.046,87.021,0.46585549]
[1773489778855,0.46946156,87.043,87.021,0.46585549]
[1773489780057,0.46946156,87.043,87.02,11.49150514]
[1773489780058,0.46946156,87.029,86.993,0.46585549]
[1773489780556,0.46946156,87.019,86.993,11.96093789]
[1773489780740,0.46946156,87.019,86.994,0.46585549]
[1773489781243,0.46946156,87.038,87.001,0.46585549]
[1773489781644,0.46946156,87.029,87.001,0.46585549]
[1773489783338,0.46946156,87.019,86.99,11.49554944]
[1773489783742,0.46946156,87.019,86.99,11.96140493]
[1773489784054,0.46946156,87.019,86.991,0.46585549]
[1773489784652,3.75179232,87.02,86.991,0.46585549]
[1773489785261,0.46946156,87.031,87.001,0.46585549]
[1773489785763,4.22125388,87.03,87.001,0.46585549]
[1773489785946,0.46946156,87.029,87.001,0.46585549]
[1773489787876,0.46946156,87.029,87.003,0.46585549]
[1773489790871,0.46946156,87.029,87.005,0.46585549]
[1773489792263,0.46946156,87.029,87.006,11.95931571]
[1773489792449,0.1,87.04,87.007,0.46585549]
[1773489792770,0.1,87.04,87.011,0.46585549]
[1773489794167,0.1,87.04,87.013,0.46585549]
[1773489795268,0.1,87.04,87.021,0.46585549]
[1773489798951,0.1,87.04,87.023,0.46585549]
[1773489800968,0.1,87.04,87.025,0.46585549]
[1773489804066,0.1,87.04,87.026,0.45824523]
[1773489805771,1e-08,87.05,87.034,0.45824523]
[1773489806071,7.34,87.056,87.034,0.45824523]
[1773489807974,0.48949909,87.055,87.036,0.45824523]
[1773489809363,0.48949909,87.049,87.02,3.75179232]
[1773489809872,0.48949909,87.049,87.002,61.6]
[1773489809873,11.48791471,87.048,87.011,11.49279976]
[1773489810075,0.48949909,87.047,87.011,11.49279976]
[1773489811462,0.48949909,87.047,87.012,0.45824523]
[1773489811665,0.48949909,87.039,87.012,0.45824523]
[1773489813181,0.48949909,87.039,87.013,11.49253559]
[1773489814066,0.1,87.06,87.038,0.33125384]
[1773489814562,69.52,87.109,87.06,0.13125384]
[1773489814779,0.5,87.093,87.06,3.75179232]
[1773489815073,0.5,87.091,87.061,11.48619933]
[1773489815285,0.5,87.089,87.061,11.48619933]
[1773489816067,0.5,87.089,87.051,11.48751881]
[1773489817578,0.5,87.087,87.051,11.48751881]
[1773489818685,0.5,87.085,87.06,3.75179232]
[1773489819680,0.5,87.085,87.061,11.48619933]
[1773489820068,11.48197903,87.093,87.061,11.48619933]
[1773489820482,0.5,87.092,87.061,11.48619933]
[1773489821270,0.5,87.089,87.061,11.48619933]
[1773489823274,0.5,87.087,87.06,3.75179232]
[1773489825700,11.48290195,87.086,87.061,11.48619933]
[1773489826115,11.98290195,87.086,87.061,11.48619933]
[1773489826282,11.98290195,87.086,87.07,3.75179232]
[1773489826283,11.48290195,87.086,87.07,3.75179232]
[1773489826481,7.32,87.093,87.07,3.75179232]
[1773489826684,0.5,87.089,87.05,3.75179232]
[1773489827594,0.5,87.089,87.05,3.74089117]
[1773489827796,0.5,87.087,87.051,11.48751881]
[1773489829996,0.5,87.085,87.05,3.74089117]
[1773489830590,0.5,87.079,87.04,3.74089117]
[1773489830894,0.5,87.069,87.04,3.74089117]
[1773489831093,0.5,87.059,87.035,11.48961295]
[1773489831303,0.5,87.059,87.04,3.74089117]
[1773489833102,0.5,87.058,87.03,3.74089117]
[1773489833495,0.5,87.039,86.978,40.2400607]
[1773489833696,0.5,87.029,86.99,3.74089117]
[1773489834403,0.5,87.009,86.978,11.4971602]
[1773489835399,0.5,87.009,86.971,11.49808556]
[1773489835705,15.23389211,87.01,86.971,11.49808556]
[1773489835706,0.5,87.007,86.971,11.49808556]
[1773489836098,3.74089117,87.0,86.971,11.49808556]
[1773489837099,3.74089117,87.0,86.967,28.74633942]
[1773489837705,0.5,87.001,86.967,28.74633942]
[1773489837893,3.74089117,87.0,86.97,3.74089117]
[1773489838094,0.5,87.001,86.97,3.74089117]
[1773489839296,0.5,87.001,86.971,40.24329948]
[1773489842692,3.74089117,87.01,86.981,0.49837541]
[1773489842894,3.74089117,87.01,86.983,0.49837541]
[1773489843311,11.49177065,87.019,86.983,0.49837541]
[1773489844015,11.49177065,87.019,86.984,11.99474255]
[1773489844512,3.74089117,87.01,86.985,0.49837541]
[1773489844811,0.47615934,87.009,86.985,0.49837541]
[1773489846110,0.47615934,87.009,86.986,11.49610282]
[1773489846299,0.47615934,87.018,86.99,3.74089117]
[1773489846504,0.47615934,87.018,86.991,0.49837541]
[1773489849114,0.47615934,87.018,86.992,11.99368532]
[1773489849999,0.47615934,87.018,86.993,0.49837541]
[1773489850712,0.47615934,87.018,86.994,11.49504563]
[1773489851013,0.47615934,87.018,86.994,11.99342104]
[1773489854621,0.47615934,87.018,86.995,0.49837541]
[1773489855325,0.47615934,87.018,86.994,11.49504563]
[1773489857725,0.47615934,86.999,86.971,0.49837541]
[1773489857928,0.47615934,87.009,86.98,3.74089117]
[1773489858118,0.47615934,87.009,86.981,0.49837541]
[1773489858916,0.47615934,87.009,86.982,11.49663148]
[1773489859831,0.47615934,87.009,86.982,11.99500689]
[1773489861728,0.47615934,87.009,86.983,0.46344909]
[1773489864334,0.47615934,87.009,86.985,0.46344909]
[1773489867031,0.47615934,87.009,86.987,0.46344909]
[1773489868728,2.95506722,87.06,86.987,0.46344909]
[1773489868927,2.95506722,87.06,86.847,11.49205501]
[1773489868928,0.45480591,87.029,87.001,0.46344909]
[1773489869128,0.45480591,87.019,86.991,0.46344909]
[1773489869533,0.45480591,87.009,86.977,0.46344909]
[1773489870444,0.45480591,87.009,86.978,11.4971602]
[1773489870631,0.45480591,87.009,86.979,0.46344909]
[1773489870945,0.45480591,86.999,86.978,11.4971602]
[1773489871237,0.45480591,86.989,86.962,0.46344909]
[1773489871445,0.45480591,86.989,86.963,11.49914331]
[1773489873247,0.45480591,86.989,86.963,0.46344909]
[1773489876149,0.45480591,86.989,86.965,0.46344909]
[1773489877528,0.45480591,87.014,86.981,0.46344909]
[1773489877740,0.45480591,87.009,86.981,0.46344909]
[1773489880434,0.45480591,87.009,86.983,0.46344909]
[1773489882152,0.45480591,87.009,86.984,11.49636714]
[1773489882333,0.45480591,87.009,86.984,11.95981623]
[1773489883151,0.45480591,87.009,86.985,0.46344909]
[1773489885255,0.45480591,87.009,86.986,11.95955191]
[1773489886549,0.45480591,87.009,86.987,0.46344909]
[1773489887955,0.45480591,87.007,86.982,0.46344909]
[1773489888549,0.45480591,87.007,86.983,11.49649931]
[1773489889758,0.45480591,87.007,86.983,12.07917291]
[1773489891156,0.45480591,87.007,86.984,0.5826736]
[1773489893662,0.45480591,87.007,86.985,11.49623498]
[1773489893865,0.45480591,87.007,86.986,0.59496]
[1773489896251,0.55558654,86.999,86.973,0.59496]
[1773489898548,0.55558654,86.999,86.974,11.49768896]
[1773489898747,0.55558654,86.999,86.975,0.59496]
[1773489900060,0.55558654,86.999,86.977,0.59496]
[1773489900848,0.55558654,87.006,86.977,0.59496]
[1773489901450,0.55558654,87.038,87.001,0.59496]
[1773489901655,0.55558654,87.038,87.011,0.59496]
[1773489901851,0.55558654,87.038,87.02,3.74767317]
[1773489902065,0.55558654,87.044,87.021,0.59496]
[1773489902370,0.55558654,87.044,87.023,0.59496]
[1773489902759,11.48827181,87.046,87.023,0.59496]
[1773489904282,11.48827181,87.046,87.024,11.49108291]
[1773489904452,11.48827181,87.046,87.025,0.59496]
[1773489904968,0.55558654,87.045,87.025,0.59496]
[1773489907570,0.55558654,87.043,87.012,0.59496]
[1773489909374,0.55558654,87.043,87.014,0.59496]
[1773489910873,0.55558654,87.039,87.013,11.49253559]
[1773489911060,11.4887066,87.042,87.008,11.49319602]
[1773489911061,0.55558654,87.029,87.008,11.49319602]
[1773489911770,0.55558654,87.029,87.006,0.59496]
[1773489912972,0.55558654,87.028,87.006,0.59496]
[1773489913970,0.55558654,87.028,87.007,11.49332812]
[1773489914891,0.55558654,87.028,87.007,12.08828812]
[1773489915169,0.55558654,87.028,87.008,0.59496]
[1773489915370,0.55558654,87.038,87.008,0.59496]
[1773489915571,0.55558654,87.038,87.011,0.59496]
[1773489918262,0.55558654,87.038,87.012,11.49266767]
[1773489918458,0.55558654,87.029,87.006,11.49333969]
[1773489918671,0.55558654,87.029,87.006,12.08829969]
[1773489918858,0.55558654,87.029,87.007,0.59496]
[1773489921366,0.55558654,87.029,87.008,11.49319602]
[1773489921975,0.67161371,87.028,87.007,0.59496]
[1773489923084,0.67161371,87.028,87.008,11.49319602]
[1773489925281,0.67161371,87.028,87.009,0.63252366]
[1773489925575,0.67161371,87.037,87.009,0.63252366]
[1773489926983,0.67161371,87.035,87.011,0.63252366]
[1773489930276,0.67161371,87.035,87.012,11.49266767]
[1773489930494,0.67161371,87.035,87.013,0.63252366]
[1773489936692,0.67161371,87.035,87.008,0.63252366]
[1773489939380,0.67161371,87.033,87.009,11.49306393]
[1773489939988,0.67161371,87.033,87.01,0.63252366]
[1773489940290,7.34,87.048,87.021,0.63252366]
[1773489941289,7.34,87.048,87.022,11.49134701]
[1773489941487,7.34,87.048,87.022,12.12387067]
[1773489941994,3.74767317,87.05,87.022,12.12387067]
[1773489942194,0.67161371,87.049,87.022,12.12387067]
[1773489942395,11.48801008,87.048,87.022,12.12387067]
[1773489942589,0.67161371,87.047,87.022,12.12387067]
[1773489943785,0.67161371,87.047,87.023,0.63252366]
[1773489946293,0.67161371,87.047,87.025,0.63252366]
[1773489946502,0.67161371,87.058,87.031,0.63252366]
[1773489947589,0.67161371,87.058,87.032,11.49002665]
[1773489948198,0.67161371,87.058,87.032,12.12255031]
[1773489949702,0.71007685,87.056,87.033,0.72224102]
[1773489950807,0.71007685,87.056,87.035,0.72224102]
[1773489952897,11.48699098,87.055,87.03,15.23346776]
[1773489953084,0.69325317,87.054,87.022,0.67951014]
[1773489956606,0.69325317,87.052,87.024,0.67951014]
[1773489960309,11.48751881,87.051,87.024,0.67951014]
[1773489960605,0.69325317,87.05,87.026,0.67951014]
[1773489963509,0.69325317,87.039,87.003,0.67951014]
[1773489963707,0.69325317,87.039,87.011,0.67951014]
[1773489965395,3.74322814,87.06,87.031,0.67951014]
[1773489965596,0.69325317,87.059,87.031,0.67951014]
[1773489966500,0.69325317,87.057,87.031,0.67951014]
[1773489967518,11.48659514,87.058,87.031,0.67951014]
[1773489970928,11.48367601,87.081,87.051,0.67951014]
[1773489971109,11.48422068,87.076,87.051,0.67951014]
[1773489971618,0.69325317,87.069,87.03,3.74322814]
[1773489971813,0.69325317,87.069,87.031,0.67951014]
[1773489972327,0.69325317,87.059,87.031,0.67951014]
[1773489973431,0.69325317,87.057,87.031,0.67951014]
[1773489974430,0.69325317,87.057,87.033,0.67951014]
[1773489975420,0.69325317,87.049,87.024,0.67951014]
[1773489975624,0.69325317,87.047,87.024,0.67951014]
[1773489975819,0.69325317,87.047,87.01,3.74322814]
[1773489975820,0.69325317,87.047,87.018,0.67951014]
[1773489976025,0.69325317,87.039,87.018,0.67951014]
[1773489977433,12.18248775,87.038,87.018,0.67951014]
[1773489985712,11.48923458,87.038,87.018,0.67951014]
[1773489987333,11.4887066,87.042,87.018,0.67951014]
[1773489987832,12.26021247,87.042,87.018,0.67951014]
[1773489988236,11.4887066,87.042,87.021,0.79065436]
[1773489988838,0.77150587,87.047,87.023,0.79065436]
[1773489993036,11.48817866,87.046,87.023,0.79065436]
[1773489993237,11.48817866,87.046,87.024,11.49108291]
[1773489993438,4.82477569,87.112,87.024,11.49108291]
[1773489993439,0.77150587,87.057,87.031,0.79065436]
[1773489994054,0.77150587,87.062,87.031,0.79065436]
[1773489995069,11.48619933,87.061,87.032,11.49002665]
[1773489995368,11.48619933,87.061,87.033,0.79065436]
[1773489995572,11.48619933,87.061,87.04,3.74322814]
[1773489995753,11.48619933,87.061,87.041,0.79065436]
[1773489996453,0.77150587,87.06,87.041,0.79065436]
[1773489996653,11.48619933,87.061,87.041,0.79065436]
[1773489997150,0.77150587,87.065,87.042,0.79065436]
[1773489998471,11.48580354,87.064,87.042,0.79065436]
[1773490003375,11.48580354,87.064,87.043,11.48857461]
[1773490003574,11.48580354,87.064,87.044,0.79065436]
[1773490003760,11.48461635,87.073,87.051,0.79065436]
[1773490004078,11.48395691,87.078,87.051,0.79065436]
[1773490004281,12.25546278,87.078,87.051,0.79065436]
[1773490004474,0.77150587,87.077,87.051,0.79065436]
[1773490008387,11.48422068,87.076,87.051,0.79065436]
[1773490009491,11.48342941,87.082,87.051,0.79065436]
[1773490009672,11.48342941,87.082,87.053,0.74001447]
[1773490010589,12.29011238,87.082,87.053,0.74001447]
[1773490011778,0.76130299,87.081,87.053,0.74001447]
[1773490012378,40.18901136,87.089,87.061,0.73834529]
[1773490012574,0.76130299,87.088,87.044,11.48844262]
[1773490012779,0.76130299,87.088,87.05,3.74097]
[1773490013172,0.76130299,87.088,87.044,11.48844262]
[1773490013380,0.76130299,87.079,87.044,11.48844262]
[1773490013793,0.76130299,87.077,87.05,3.74097]
[1773490014485,0.76130299,87.077,87.051,0.73834529]
[1773490015282,0.76130299,87.077,87.05,3.74097]
[1773490015677,0.76130299,87.075,87.05,4.47931529]
[1773490017398,0.76130299,87.073,87.05,4.47931529]